[Event "3rd President Cup-A 2024"]
[Site "Tashkent"]
[Date "2024.11.22"]
[Round "1.6"]
[White "Nihal Sarin"]
[Black "Bakhrillaev, Bakhrom"]
[Result "1-0"]
[ECO "D50"]
[WhiteElo "2676"]
[BlackElo "2369"]
[Annotator "TA"]
[PlyCount "77"]
[EventDate "2024.11.22"]
[EventType "swiss"]
[EventCountry "UZB"]
[SourceTitle "playchess.com"]
[Source "ChessBase"]
[SourceQuality "1"]
[TimeControl "5400+30"]

{[%evp 16,77,26,15,23,14,22,18,26,40,25,30,25,16,54,48,58,63,87,80,81,94,80,53,54,72,81,79,226,228,222,223,225,222,225,227,200,227,458,473,464,472,484,453,464,490,467,465,490,467,574,585,587,587,869,839,969,925,29968,29969,29965,6387,6387,5493]} 1. d4 {[%emt 0:00:11]} Nf6 {[%emt 0:03:27]} 2. Nf3 {[%emt 0:00:10]} e6 {[%emt 0:00:05]} 3. Bg5 {[%emt 0:00:45]} d5 {[%emt 0:00:53]} 4. e3 {[%emt 0:00:08]} Be7 {[%emt 0:01:09]} 5. c4 {[%emt 0:00:27]} dxc4 {[%emt 0:02:00]} 6. Bxc4 {[%emt 0:00:16]} c5 {[%emt 0:00:07]} 7. O-O {[%emt 0:00:50]} cxd4 {[%emt 0:00:52]} 8. Nxd4 {[%emt 0:00:59]} O-O {[%emt 0:00:45]} 9. Nc3 {[%emt 0:01:06]} Bd7 {[%emt 0:02:33]} 10. Qe2 {[%emt 0:23:15]} Nc6 {[%emt 0:00:52][%cal Bb8c6,Bc6e5,Be5g4][%mdl 32]} 11. Rfd1 {[%emt 0:00:13]} Ne5 {[%emt 0:33:45] The position is equal.} 12. Bb3 {[%emt 0:05:03]} Qa5 {[%emt 0:03:14]} 13. Ne4 {[%emt 0:03:36]} Neg4 {[%emt 0:06:26]} 14. Bc2 {[%emt 0:07:56] Hoping for h3.} h6 {[%emt 0:08:38]} 15. Bh4 {[%emt 0:11:18] And now h3 would win.} Rfe8 {[%emt 0:10:06]} 16. Nc3 {[%emt 0:00:45]} Rad8 {[%emt 0:04:22]} 17. Bg3 {[%emt 0:02:22] Nb3 would now be deadly.} Ne5 {[%emt 0:04:12]} 18. Nb3 {[%emt 0:00:22]} Qc7 {[%emt 0:00:01]} 19. Rd4 {[%emt 0:02:09] White is more active.} Bc6 {[%emt 0:01:51]} 20. Rad1 {[%emt 0:00:37]} Nd5 {[%emt 0:00:13]} 21. Qh5 $36 {[%emt 0:02:58][%mdl 2048] White has strong initiative.} f5 {[%emt 0:04:11] [#] This move loses the game for Black.} (21... Nxc3 $16 22. bxc3 (22. Qxe5 $2 {is the wrong capture.} Qxe5 23. Bxe5 Nxd1 $19) (22. Bxe5 Ne2+ 23. Qxe2 Qxe5 $15) 22... f6) 22. Bxf5 $1 $18 {[%emt 0:02:46][%mdl 512]} exf5 {[%emt 0:03:56]} 23. Nxd5 {[%emt 0:00:18]} Bxd5 {[%emt 0:00:05]} 24. Rxd5 {[%emt 0:00:07]} Bf6 {[%emt 0:00:08]} 25. Qxf5 {[%emt 0:02:35]} Rxd5 {[%emt 0:00:02]} 26. Rxd5 {[%emt 0:00:11]} Qc4 $2 {[%emt 0:00:01]} (26... Qf7 27. Rd2 (27. Rxe5 Bxe5 28. Qc2 Bf6 $17) 27... b6 28. Bxe5 Bxe5 29. Qxf7+ Kxf7) 27. Rxe5 {[%emt 0:06:06]} Bxe5 {[%emt 0:01:14]} 28. Bxe5 {[%emt 0:00:07]} Qe2 {[%emt 0:00:27][%cal Re2e1] [#]} 29. h4 {[%emt 0:03:53]} Rf8 {[%emt 0:00:01]} 30. Qe6+ {[%emt 0:00:07]} Kh7 {[%emt 0:00:04]} 31. Bg3 {[%emt 0:00:04]} Qxb2 {[%emt 0:00:04]} 32. Nd4 {[%emt 0:00:27]} Rf6 {[%emt 0:00:13]} 33. Qe4+ {[%emt 0:00:24]} Kh8 {[%emt 0:00:09]} 34. Qd5 {[%emt 0:00:26]} Ra6 {[%emt 0:01:45]} 35. Be5 {[%emt 0:01:43] Strongly threatening Ne6.} Qb1+ {[%emt 0:01:27]} 36. Kh2 {[%emt 0:00:12] Threatens to win with Ne6.} Rg6 {[%emt 0:02:51]} 37. Ne6 {[%emt 0:04:31]} Rg4 {[%emt 0:01:47]} 38. Qd8+ {[%emt 0:00:25]} Kh7 {[%emt 0:00:01]} 39. h5 {[%emt 0:00:07] Weighted Error Value: White=0.02 (flawless) /Black=0.45.  Mistake:       	---       	Black=2      Inaccurate:     	White=1     	Black=2      OK:         	White=14    	Black=10     Best:        	White=3     	Black=1} 1-0

[Event "3rd President Cup-A 2024"]
[Site "Tashkent"]
[Date "2024.11.22"]
[Round "1.7"]
[White "Mamatov, Melis"]
[Black "Yakubboev, Nodirbek"]
[Result "0-1"]
[ECO "B30"]
[WhiteElo "2367"]
[BlackElo "2668"]
[Annotator "TA"]
[PlyCount "110"]
[EventDate "2024.11.22"]
[EventType "swiss"]
[EventCountry "UZB"]
[SourceTitle "playchess.com"]
[Source "ChessBase"]
[SourceQuality "1"]
[TimeControl "5400+30"]

{[%evp 33,110,-20,-31,-27,-25,-24,-25,-29,-18,-31,-36,-33,-23,-31,-35,-44,-36,-39,-18,-23,-17,-13,-12,-14,-14,-24,-4,-21,-11,-41,-2,-25,-18,-18,-16,-52,-55,-81,-47,-43,-48,-58,-21,-67,-66,-136,-133,-141,-135,-214,-198,-216,-163,-225,-153,-631,-231,-227,-219,-303,-323,-320,-223,-213,0,-347,-310,-296,-296,-480,-266,-258,-255,-544,-528,-513,-485,-507,-500]} 1. e4 {[%emt 0:00:07]} c5 {[%emt 0:00:53]} 2. Nf3 {[%emt 0:00:39]} Nc6 {[%emt 0:00:45]} 3. Bb5 {[%emt 0:00:24]} e6 {[%emt 0:02:16]} 4. O-O {[%emt 0:00:15]} Nge7 {[%emt 0:00:06]} 5. Re1 {[%emt 0:00:17]} h6 {[%emt 0:02:25]} 6. c3 {[%emt 0:07:41] B30: Sicilian: 2...Nc6 3 Bb5, lines without ...g6.} a6 {[%emt 0:00:07]} 7. Bxc6 {[%emt 0:01:21]} Nxc6 {[%emt 0:00:13]} 8. d4 {[%emt 0:00:06]} d5 {[%emt 0:00:05]} 9. exd5 {[%emt 0:08:36]} Qxd5 {[%emt 0:00:03]} 10. dxc5 $146 {[%emt 0:00:37]} ({Predecessor:} 10. c4 Qxc4 11. d5 Nd4 12. Nc3 Bd6 13. Re4 f5 14. Ne5 Bxe5 15. Qh5+ Kf8 16. Rxe5 {1-0 Gukesh,D (2758)-Vachier Lagrave,M (2727) Chess.com Speed Chess blitz 2023 (1.8)}) 10... Qxd1 {[%emt 0:07:37]} 11. Rxd1 {[%emt 0:00:07]} Bxc5 {[%emt 0:00:16]} 12. Nbd2 {[%emt 0:02:06]} e5 {[%emt 0:09:34]} 13. Ne4 {[%emt 0:03:36]} Be7 {[%emt 0:05:08]} 14. Nd6+ {[%emt 0:02:41]} Bxd6 {[%emt 0:01:22]} 15. Rxd6 {[%emt 0:00:10]} Be6 {[%emt 0:12:09]} 16. b3 {[%emt 0:08:54]} Rd8 {[%emt 0:01:28]} 17. Ba3 {[%emt 0:07:08]} Rxd6 {[%emt 0:00:11]} 18. Bxd6 {[%emt 0:00:18]} f6 {[%emt 0:00:05]} 19. Bc5 {[%emt 0:09:46]} Kf7 {[%emt 0:03:35]} 20. Bb6 {[%emt 0:01:23]} Rc8 {[%emt 0:03:09]} 21. Nd2 {[%emt 0:03:38]} Ne7 {[%emt 0:08:49]} 22. c4 {[%emt 0:00:23]} Rc6 {[%emt 0:00:19]} 23. Be3 {[%emt 0:02:31]} Nf5 {[%emt 0:10:16]} 24. Kf1 {[%emt 0:04:57]} g5 {[%emt 0:05:15]} 25. Ke2 {[%emt 0:01:44]} Nh4 {[%emt 0:00:35]} 26. g3 {[%emt 0:11:49]} Bg4+ {[%emt 0:00:40]} 27. Kd3 {[%emt 0:00:07]} (27. f3 Nxf3 28. Nxf3 e4 $17) 27... Nf3 {[%emt 0:00:00]} 28. Nxf3 {[%emt 0:01:31]} Bxf3 {[%emt 0:01:07]} 29. a4 {[%emt 0:00:42]} f5 {[%emt 0:01:20]} 30. a5 {[%emt 0:02:14]} f4 {[%emt 0:03:24]} 31. Ba7 {[%emt 0:00:35]} Rc8 {[%emt 0:00:06]} 32. Re1 {[%emt 0:01:46]} Kf6 {[%emt 0:00:52]} 33. b4 {[%emt 0:05:48]} h5 {[%emt 0:06:53]} 34. gxf4 {[%emt 0:01:42]} gxf4 {[%emt 0:02:46]} 35. Rg1 {[%emt 0:00:15]} h4 {[%emt 0:01:12]} 36. Bb6 {[%emt 0:01:45]} h3 {[%emt 0:00:58]} 37. b5 {[%emt 0:00:39]} Bg2 {[%emt 0:04:07]} 38. Rd1 {[%emt 0:02:03]} (38. bxa6 $11 bxa6 39. c5) 38... e4+ $15 {[%emt 0:03:37]} 39. Kd4 {[%emt 0:00:23]} ({White should play} 39. Kc3 $15) 39... axb5 $17 {[%emt 0:00:05]} 40. c5 {[%emt 0:01:58]} Kf5 {[%emt 0:01:49]} 41. Rb1 {[%emt 0:00:27]} (41. Rc1 $17) 41... Kg4 $1 $19 {[%emt 0:01:22]} 42. Rb3 {[%emt 0:03:03]} Rf8 {[%emt 0:03:22]} 43. c6 {[%emt 0:00:16]} (43. Rb2 {was necessary.}) 43... bxc6 {[%emt 0:00:16]} 44. Bc5 $2 {[%emt 0:02:27]} (44. Rb2 $17) 44... Rd8+ $2 {[%emt 0:00:35]} (44... Rf5 45. Bb6 e3 (45... Rd5+ $2 46. Kc3 $19)) 45. Kc3 $19 {[%emt 0:00:01]} b4+ {[%emt 0:00:57]} 46. Rxb4 {[%emt 0:01:24] [#]} Rd3+ $1 {[%emt 0:00:27]} 47. Kb2 {[%emt 0:00:37]} Rd2+ {[%emt 0:00:31]} 48. Kb3 {[%emt 0:01:11]} Rd3+ {[%emt 0:00:38]} (48... Rd5 $142 49. Bb6 Rd3+ 50. Kb2 Rd2+ 51. Kc3 Rd3+ 52. Kc2 c5 (52... Ra3 53. Kb2 $11) 53. Bxc5 Rd5) 49. Kb2 $1 $19 {[%emt 0:00:01]} Rd5 {[%emt 0:00:08]} 50. Bb6 {[%emt 0:00:34]} c5 {[%emt 0:00:50]} 51. Rc4 $2 {[%emt 0:00:24]} (51. Ra4 Rd2+ 52. Kc3 Rxf2 53. Bxc5) 51... Kf3 {[%emt 0:00:38]} (51... Rd2+ $142 52. Rc2 Rxc2+ 53. Kxc2 e3 54. Bxc5 exf2 55. Bxf2 Kf3) 52. a6 $19 {[%emt 0:00:47] [#]} Rd6 $1 {[%emt 0:00:22]} (52... Kxf2 $2 53. Rc2+ (53. Bxc5+ $2 Rxc5 54. a7 Rb5+ 55. Kc3 Ra5 $19) 53... Kg1 54. a7 $18 (54. Bxc5+ $2 {perishes.} e3 $19)) 53. Rc3+ $2 {[%emt 0:01:06]} (53. Bxc5 {was the only defense.} Rxa6 54. Rc3+ Kg4 55. Rc1) 53... e3 $19 {[%emt 0:00:21]} (53... Kxf2 $2 {too greedy.} 54. Bxc5+ $18) 54. Bxc5 {[%emt 0:02:30]} Rd2+ {[%emt 0:00:14]} ({And not} 54... Rxa6 55. fxe3 fxe3 56. Rxe3+ Kf4 57. Rb3 $11) 55. Kc1 {[%emt 0:00:00]} Rxf2 {[%emt 0:00:47]} 0-1

[Event "3rd President Cup-A 2024"]
[Site "Tashkent"]
[Date "2024.11.22"]
[Round "1.8"]
[White "Puranik, Abhimanyu"]
[Black "Aradhya, Garg"]
[Result "1-0"]
[ECO "C54"]
[WhiteElo "2652"]
[BlackElo "2365"]
[Annotator "TA"]
[PlyCount "76"]
[EventDate "2024.11.22"]
[EventType "swiss"]
[EventCountry "UZB"]
[SourceTitle "playchess.com"]
[Source "ChessBase"]
[SourceQuality "1"]
[TimeControl "5400+30"]

{[%evp 14,76,24,10,5,9,0,0,6,0,0,0,16,26,25,0,9,0,0,0,21,0,0,-5,20,-11,-12,-4,0,-15,-15,-36,16,23,16,7,60,73,45,21,21,14,16,0,0,0,0,-6,-6,-6,0,0,0,0,22,0,0,0,15,14,18,21,11,0,0]} 1. e4 {[%emt 0:00:23]} e5 {[%emt 0:00:01]} 2. Nf3 {[%emt 0:00:05]} Nc6 {[%emt 0:00:03]} 3. Bc4 {[%emt 0:00:06]} Nf6 {[%emt 0:00:10]} 4. d3 {[%emt 0:00:04]} Bc5 {[%emt 0:00:04]} 5. O-O {[%emt 0:00:10]} d6 {[%emt 0:00:36]} 6. c3 {[%emt 0:00:06]} h6 {[%emt 0:00:11]} 7. Re1 {[%emt 0:00:56]} O-O {[%emt 0:12:13]} 8. h3 {[%emt 0:00:04]} (8. b4 $5 Bb6 $8 9. a4 $16) 8... a5 {[%emt 1:21:12]} 9. Bb5 {[%emt 0:00:09]} Ba7 {[%emt 0:00:30]} 10. a4 {[%emt 0:00:42]} Ne7 {[%emt 0:00:00]} 11. d4 {[%emt 0:00:08]} Ng6 {[%emt 0:00:00]} 12. Be3 {[%emt 0:03:09]} c6 {[%emt 0:00:00]} 13. Bd3 {[%emt 0:01:05]} Nh5 {[%emt 0:00:00]} 14. Nbd2 {[%emt 0:04:10]} Nhf4 {[%emt 0:00:00]} 15. Bf1 {[%emt 0:01:27]} exd4 {[%emt 0:00:00]} 16. Bxd4 {[%emt 0:11:40]} Bb8 {[%emt 0:00:00]} 17. Nc4 {[%emt 0:11:56]} Bc7 {[%emt 0:00:00] Prevents Nb6} 18. b4 {[%emt 0:06:02]} b6 {[%emt 0:00:00]} 19. Qc2 {[%emt 0:10:47]} c5 {[%emt 0:00:00]} 20. Be3 {[%emt 0:05:24]} Qf6 {[%emt 0:00:00][%cal Of4h3]} 21. bxc5 {[%emt 0:00:12]} dxc5 {[%emt 0:00:00][%cal Of4h3] ...Nxh3+! would now be deadly.} 22. e5 {[%emt 0:06:48]} Qf5 {[%emt 0:00:00]} (22... Bxe5 $2 23. Nfxe5 Nd5 (23... Nxe5 $2 24. Bxf4 Nxc4 25. Qe4 $18) 24. Nxg6 fxg6 25. Qe4 $18) (22... Nxh3+ $1 $15 23. gxh3 (23. Kh1 Qe6 $17) 23... Qxf3) 23. Qxf5 $11 {[%emt 0:01:57]} Bxf5 {[%emt 0:00:00]} 24. Nd6 {[%emt 0:08:21]} Bd3 {[%emt 0:00:00]} (24... Bxd6 $11 25. Bxf4 (25. exd6 Nd5 $11) 25... Bc7) 25. Bxf4 $1 $14 {[%emt 0:03:18]} Nxf4 {[%emt 0:00:00]} 26. Bxd3 {[%emt 0:02:15]} Nxd3 {[%emt 0:00:00] The position is equal.} 27. Red1 {[%emt 0:00:06]} Nb2 {[%emt 0:00:00]} 28. Rd2 {[%emt 0:04:24]} Bxd6 {[%emt 0:00:00]} 29. Rxb2 {[%emt 0:01:21]} (29. exd6 $5 Nc4 $8 30. Rd5 $11) 29... Bc7 {[%emt 0:00:00]} 30. Rd1 {[%emt 0:00:54]} Rfd8 {[%emt 0:00:00]} 31. Rbd2 {[%emt 0:00:26]} Rxd2 {[%emt 0:00:00]} 32. Rxd2 $11 {[%emt 0:00:04][%mdl 4096] Endgame. KRB-KRN} Re8 {[%emt 0:00:00]} 33. Rd5 {[%emt 0:00:56]} c4 {[%emt 0:01:31]} 34. g4 {[%emt 0:03:19]} Kf8 {[%emt 0:01:04]} (34... Rd8 35. Rxd8+ Bxd8 36. Nd2 $14) 35. Kf1 {[%emt 0:01:17]} Re6 {[%emt 0:00:15]} ({Much weaker is} 35... Rd8 $6 36. Rxd8+ Bxd8 37. Nd2 $16) 36. h4 {[%emt 0:02:04][%cal Bh3h4,Bh4h5][%mdl 32]} Ke8 {[%emt 0:00:12]} 37. h5 {[%emt 0:01:01]} Bb8 {[%emt 0:01:33]} 38. Kg2 {[%emt 0:12:14]} Bc7 {[%emt 0:02:14][%mdl 32768] Weighted Error Value: White=0.07 (flawless) /Black=0.10 (very precise) .  Mistake:       	---       	Black=2      Inaccurate:     	White=1     	---        OK:         	White=9     	Black=14     Best:        	White=1     	Black=1      Strong:       	White=1     	---       . Loss on time!?} 1-0

[Event "3rd President Cup-A 2024"]
[Site "Tashkent"]
[Date "2024.11.22"]
[Round "1.9"]
[White "Timoshin, Maxim"]
[Black "Karthikeyan, Murali"]
[Result "0-1"]
[ECO "D35"]
[WhiteElo "2361"]
[BlackElo "2625"]
[Annotator "TA"]
[PlyCount "106"]
[EventDate "2024.11.22"]
[EventType "swiss"]
[EventCountry "UZB"]
[SourceTitle "playchess.com"]
[Source "ChessBase"]
[SourceQuality "1"]
[TimeControl "5400+30"]

{[%evp 34,106,20,15,17,-25,-21,-25,-35,-30,0,0,100,77,89,99,85,89,168,122,136,87,87,77,93,100,101,56,81,66,49,49,49,49,78,10,12,18,31,0,0,0,0,0,0,-121,-115,-106,-103,-174,0,0,0,0,0,0,0,0,0,0,0,0,0,-66,0,-36,-34,-234,-239,-680,-672,-5065,-5065,-4133,-3200]} 1. d4 {[%emt 0:01:32]} Nf6 {[%emt 0:01:49]} 2. c4 {[%emt 0:00:06]} e6 {[%emt 0:01:03]} 3. Nc3 {[%emt 0:00:21]} d5 {[%emt 0:02:00]} 4. cxd5 {[%emt 0:00:24]} exd5 {[%emt 0:00:07]} 5. Bg5 {[%emt 0:00:09]} c6 {[%emt 0:00:09]} 6. e3 {[%emt 0:00:11]} Bd6 {[%emt 0:00:35]} 7. Bd3 {[%emt 0:01:03]} O-O {[%emt 0:00:14]} 8. Qc2 {[%emt 0:06:07] D35: Queen's Gambit Declined: Exchange Variation.} h6 {[%emt 0:01:09]} 9. Bh4 {[%emt 0:00:06]} Re8 {[%emt 0:01:26]} 10. Nge2 {[%emt 0:05:48]} a5 {[%emt 0:01:19]} 11. h3 {[%emt 0:02:45]} Na6 {[%emt 0:01:11]} 12. a3 {[%emt 0:00:08]} Bd7 $5 {[%emt 0:02:37][%mdl 4] An interesting side line.} 13. O-O {[%emt 0:00:56]} b5 {[%emt 0:00:50]} 14. Rae1 {[%emt 0:09:02]} Nc7 {[%emt 0:06:07]} 15. Bg3 $146 {[%emt 0:04:57]} ({Predecessor:} 15. e4 dxe4 16. Nxe4 Be7 17. Nc5 Nfd5 18. Bg3 Bxc5 19. dxc5 Ne6 20. Bd6 Qf6 21. Bh7+ {1-0 Andreikin,D (2728)-Urazayev,A (2453) Titled Tuesday intern op 28th Sept blitz 2021 (4)}) 15... Qe7 {[%emt 0:04:36]} 16. Bxd6 {[%emt 0:04:02]} Qxd6 {[%emt 0:02:34]} 17. Ng3 {[%emt 0:00:08]} Ne6 {[%emt 0:04:16]} 18. Nf5 {[%emt 0:08:39]} Qf8 {[%emt 0:00:48]} 19. f4 {[%emt 0:00:46]} Rab8 {[%emt 0:13:39]} 20. g4 {[%emt 0:06:36]} b4 {[%emt 0:19:20]} 21. axb4 {[%emt 0:12:09]} axb4 {[%emt 0:07:28]} 22. Na4 {[%emt 0:00:41]} Ne4 {[%emt 0:02:07]} (22... h5 $11 {keeps the balance.}) 23. Bxe4 $16 {[%emt 0:07:09]} dxe4 {[%emt 0:00:07]} 24. Ng3 {[%emt 0:00:43]} (24. Qxe4 $2 c5 25. Qf3 cxd4 $19 (25... Bxa4 $2 26. d5 $19)) 24... b3 {[%emt 0:01:02]} 25. Qc3 $1 {[%emt 0:02:47]} (25. Qxe4 c5 26. Nc3 cxd4 27. exd4 Rb4 $19) 25... Qb4 {[%emt 0:10:48]} (25... c5 $16 {was worth a try.} 26. Nxc5 Nxc5 27. dxc5 Bb5) 26. Ra1 {[%emt 0:00:14]} (26. Qxb4 $18 Rxb4 27. Ra1) 26... Qe7 $16 {[%emt 0:00:32]} 27. Rfc1 {[%emt 0:05:08]} (27. Nxe4 $6 Nxd4 28. exd4 (28. Qxd4 Rb4 $17) 28... Qxe4 $11) (27. Kh2 $142) 27... Nc7 {[%emt 0:04:25]} 28. Nc5 {[%emt 0:01:43]} Nd5 {[%emt 0:00:04]} 29. Qe1 {[%emt 0:01:05]} Bc8 {[%emt 0:00:22]} 30. Ra3 {[%emt 0:01:36]} (30. Ngxe4 f5 31. h4 fxe4 $19) 30... f5 {[%emt 0:02:08]} 31. Nxf5 {[%emt 0:03:03]} Bxf5 {[%emt 0:00:18]} 32. gxf5 {[%emt 0:00:03]} Qf7 {[%emt 0:02:23]} 33. Kh2 {[%emt 0:04:30]} Re7 {[%emt 0:01:36]} 34. Qg3 {[%emt 0:02:03]} (34. Rxb3 $6 Rxb3 35. Nxb3 Rb7 $11) ({White should try} 34. Ra6 $16) 34... Qxf5 $11 {[%emt 0:00:20]} 35. Rg1 $1 {[%emt 0:00:23]} Qh5 {[%emt 0:02:05]} 36. f5 {[%emt 0:03:37]} (36. Rxb3 Rxb3 37. Nxb3 Qe2+ 38. Rg2 Qxe3 $17) 36... Rbe8 {[%emt 0:01:18]} 37. Ne6 {[%emt 0:01:06]} Qe2+ {[%emt 0:00:53]} 38. Rg2 {[%emt 0:01:14]} Qxe3 {[%emt 0:00:54]} 39. Rxb3 {[%emt 0:00:43]} (39. Qe5 $11 {remains equal.} g5 40. Ra5) 39... Qxg3+ $17 {[%emt 0:00:22]} 40. Rbxg3 {[%emt 0:00:04]} g5 {[%emt 0:01:20]} 41. h4 {[%emt 0:00:03]} (41. Re2 $17 {is a better defense.}) 41... Kf7 $2 {[%emt 0:01:27]} (41... Rh7 42. hxg5 hxg5+ 43. Kg1 $11) (41... Rf7 $1 $19 {[%cal Rf7f5]} 42. hxg5 h5) 42. hxg5 $11 {[%emt 0:02:59]} hxg5 {[%emt 0:00:02]} 43. Rxg5 {[%emt 0:00:43]} Rh8+ {[%emt 0:02:21]} 44. Kg1 {[%emt 0:00:04]} e3 {[%emt 0:00:57]} 45. Rg6 {[%emt 0:02:01]} Rh5 {[%emt 0:00:52]} 46. Rg8 {[%emt 0:00:47]} Kf6 $1 {[%emt 0:00:11]} 47. Rf8+ $1 {[%emt 0:03:04]} (47. R8g6+ Kxf5 48. Ng7+ Rxg7 49. Rxg7 Ke4 $15) 47... Rf7 {[%emt 0:00:03]} 48. Rxf7+ {[%emt 0:00:30]} Kxf7 {[%emt 0:00:01]} 49. Ng5+ {[%emt 0:00:30]} Ke7 {[%emt 0:00:31]} 50. Ne4 $2 {[%emt 0:00:22] [#]} (50. f6+ $15 Kxf6 51. Ne4+ Ke6 52. Rg3) 50... Nf4 $1 $19 {[%emt 0:01:50]} (50... Rxf5 51. Re2 $11) 51. Rg7+ $2 {[%emt 0:00:00]} (51. Rg3 Ne2+ (51... Rxf5 52. Rxe3 Kd7 53. Rf3 $11) 52. Kg2 Nxg3 (52... Rxf5 53. Rxe3 Nf4+ 54. Kg3 $11) 53. Nxg3) 51... Kf8 $19 {[%emt 0:00:11]} 52. Rg3 {[%emt 0:01:07] [#]} e2 $1 {[%emt 0:00:24]} ({Worse is} 52... Rxf5 53. Rxe3 Ne6 54. Re2 $11) ({Weaker is} 52... Ne2+ 53. Kg2 $17) 53. Re3 {[%emt 0:00:32]} Rh3 $1 {[%emt 0:00:06]} ({Stronger than} 53... Rxf5 54. Kf2 $11) 0-1

[Event "3rd President Cup-A 2024"]
[Site "Tashkent"]
[Date "2024.11.22"]
[Round "1.10"]
[White "Pranesh M"]
[Black "Zhu, Hengyi"]
[Result "1-0"]
[ECO "C11"]
[WhiteElo "2580"]
[BlackElo "2361"]
[Annotator "TA"]
[PlyCount "67"]
[EventDate "2024.11.22"]
[EventType "swiss"]
[EventCountry "UZB"]
[SourceTitle "playchess.com"]
[Source "ChessBase"]
[SourceQuality "1"]
[TimeControl "5400+30"]

{[%evp 20,67,14,8,18,0,4,6,6,12,27,-50,-22,-10,19,0,56,47,57,70,180,171,521,537,541,547,594,399,395,391,394,388,541,329,329,338,427,419,478,467,447,372,434,429,460,436,447,442,539,529]} 1. e4 {[%emt 0:00:03]} e6 {[%emt 0:00:10]} 2. d4 {[%emt 0:00:07]} d5 {[%emt 0:00:10]} 3. Nc3 {[%emt 0:00:09]} Nf6 {[%emt 0:00:11]} 4. e5 {[%emt 0:00:10]} Nfd7 {[%emt 0:00:07]} 5. f4 {[%emt 0:00:09]} c5 {[%emt 0:00:21]} 6. Nf3 {[%emt 0:00:08]} Nc6 {[%emt 0:00:07]} 7. Be3 {[%emt 0:00:07]} cxd4 {[%emt 0:00:21]} 8. Nxd4 {[%emt 0:00:10]} Qb6 {[%emt 0:00:06]} 9. Qd2 {[%emt 0:00:14]} Qxb2 {[%emt 0:00:34]} 10. Rb1 {[%emt 0:00:06]} Qa3 {[%emt 0:00:08]} 11. Bb5 {[%emt 0:00:11]} Nxd4 {[%emt 0:00:44]} 12. Bxd4 {[%emt 0:00:09]} a6 {[%emt 0:00:10]} 13. Bxd7+ {[%emt 0:00:12]} (13. Rb3 $5 Qe7 $8 14. Bxd7+ Qxd7 15. Ne2 $15) 13... Bxd7 {[%emt 0:00:14] The position is equal.} 14. Rb3 {[%emt 0:00:09]} Qe7 {[%emt 0:00:07]} (14... Qa5 $2 15. Bb6 $18 (15. Rxb7 Bb4 $17) (15. Rxb7 Bb4 $17)) 15. O-O {[%emt 0:00:26]} (15. Rxb7 $11 Qh4+ 16. Qf2) 15... Bc6 {[%emt 0:10:15]} 16. f5 {[%emt 0:00:09]} Qd7 {[%emt 0:27:52]} 17. Ne2 {[%emt 0:06:23][%cal Bc3e2,Be2g3,Bg3f5,Bf5d6][%mdl 32]} exf5 {[%emt 0:07:50]} (17... Bb5 $11) 18. Ng3 $14 {[%emt 0:03:32]} O-O-O {[%emt 0:11:35][%cal Of7f6]} 19. Qc3 {[%emt 0:05:15][%cal Of1b1] Black must now prevent Rfb1!} (19. Rxf5 g6 20. Rf6 Be7 $16) 19... Qe6 {[%emt 0:04:12] White stays focused until the end.} (19... Qc7 $14) 20. Nxf5 $18 {[%emt 0:05:52] Black is weak on the dark squares} (20. Rxf5 h5 $11) 20... g6 $2 {[%emt 0:02:44] [#]} (20... Rd7 21. Bb6 Qe8) 21. Nd6+ $1 {[%emt 0:02:21][%mdl 512]} Bxd6 {[%emt 0:00:29]} 22. exd6 {[%emt 0:00:09]} Qxd6 {[%emt 0:03:52]} 23. Bxh8 {[%emt 0:01:52][%cal Oh8e5]} d4 {[%emt 0:00:20][%cal Bd5d4,Bd4d3,Bd3c2][%mdl 32]} 24. Qh3+ {[%emt 0:00:12]} f5 {[%emt 0:01:27]} 25. Qxh7 {[%emt 0:05:35]} Qc5 {[%emt 0:00:45] Threatens to win with ...d3+.} 26. Qxg6 {[%emt 0:02:31]} d3+ {[%emt 0:01:33]} 27. Kh1 {[%emt 0:02:03]} dxc2 {[%emt 0:01:51]} 28. Rc3 {[%emt 0:03:37]} (28. Rxf5 $2 c1=Q+) 28... Qf2 {[%emt 0:12:14][%cal Rf2f1]} 29. Rxc6+ {[%emt 0:19:53]} (29. Rxf2 $2 Rd1+) 29... Kb8 {[%emt 0:00:17][%cal Rf2f1,Bc8b8,Bb8a7,Ba7a8][%mdl 32]} 30. Be5+ {[%emt 0:00:55]} (30. Rxf2 $2 Rd1+) 30... Ka7 {[%emt 0:00:13] [#]} 31. Rg1 {[%emt 0:01:16] Bg3 is the strong threat. White is clearly winning.} (31. Rxf2 $2 Rd1+) (31. Bb8+ $2 Kxb8 32. Rg1 bxc6 33. Qxc6 Rc8 (33... Qxg1+ $2 34. Kxg1 Rd1+ 35. Kf2 $19) 34. Qd6+ Rc7 $19) (31. Bd4+ $2 Rxd4 $19) 31... bxc6 {[%emt 0:01:47]} 32. Qg7+ {[%emt 0:02:55]} (32. Qxc6 Qxg1+ 33. Kxg1 Rd1+ 34. Kf2 c1=Q $11) 32... Ka8 {[%emt 0:00:53][%cal Of2g1] Hoping for ...Qxg1+!} 33. Qg5 {[%emt 0:01:11]} ({Not} 33. Qh6 Qb6 $18 (33... Qxg1+ $2 34. Kxg1 Kb7 35. Kf2 $18)) 33... Re8 {[%emt 0:05:54]} ({Avoid the trap} 33... Qxg1+ $2 34. Kxg1 Rd1+ 35. Kf2) 34. Bg3 {[%emt 0:00:12] Weighted Error Value: White=0.35/Black=0.64.  Mistake:       	White=1     	Black=3      Inaccurate:     	White=2     	Black=3      OK:         	White=11    	Black=3      Best:        	White=2     	Black=5      Brilliant:      	White=1     	---} 1-0